[Event "European Womens-ch 2025"]
[Site "Rhodes"]
[Date "2025.04.07"]
[Round "7.9"]
[White "Kochavi, Dana"]
[Black "Tsolakidou, Stavroula"]
[Result "0-1"]
[Annotator "RC"]
[ECO "B92"]
[WhiteElo "2301"]
[BlackElo "2445"]
[PlyCount "106"]
[EventDate "2025.03.29"]
[EventType "swiss"]
[EventCountry "GRE"]
[SourceTitle "playchess.com"]
[Source "ChessBase"]
[SourceQuality "1"]
[TimeControl "40/5400+30:1800+30"]

1. e4 {[%emt 0:00:01]} c5 {[%emt 0:00:08]} 2. Nf3 {[%emt 0:00:04]} d6 {[%emt 0:00:12]} 3. d4 {[%emt 0:00:05]} cxd4 {[%emt 0:00:05]} 4. Nxd4 {[%emt 0:00:03]} Nf6 {[%emt 0:00:07]} 5. Nc3 {[%emt 0:00:03]} a6 {[%emt 0:00:05]} 6. Be2 {[%emt 0:00:04]} e5 {[%emt 0:00:29]} 7. Nb3 {[%emt 0:00:04]} Be7 {[%emt 0:00:10]} 8. Be3 {[%emt 0:00:05]} Be6 {[%emt 0:00:25]} 9. O-O {[%emt 0:00:06]} O-O {[%emt 0:00:15]} 10. Bf3 {[%emt 0:00:04]} Qc7 {[%emt 0:00:50]} 11. Nd5 {[%emt 0:12:34]} Nxd5 {[%emt 0:04:57]} 12. exd5 {[%emt 0:00:29]} Bf5 {[%emt 0:00:06]} 13. Rc1 {[%emt 0:14:21]} Nd7 {[%emt 0:01:59]} 14. c4 {[%emt 0:00:08]} b6 {[%emt 0:05:04]} 15. Nd2 {[%emt 0:09:24]} a5 {[%emt 0:09:15]} 16. b3 {[%emt 0:07:46]} Nc5 {[%emt 0:06:03]} 17. a3 {[%emt 0:05:00]} Bg6 {[%emt 0:02:40]} 18. Be2 {[%emt 0:02:46]} f5 {[%emt 0:02:12]} 19. f4 {[%emt 0:05:25]} Bf6 {[%emt 0:12:40]} 20. b4 {[%emt 0:05:19]} axb4 {[%emt 0:01:28]} 21. axb4 {[%emt 0:00:06]} Ra3 {[%emt 0:22:23]} 22. Bf2 {[%emt 0:17:03]} Nd3 {[%emt 0:04:25]} 23. Nb1 {[%emt 0:01:18]} Nxf2 {[%emt 0:01:32]} 24. Rxf2 {[%emt 0:00:04]} Re3 {[%emt 0:01:21]} 25. fxe5 {[%emt 0:02:29]} Rxe5 {[%emt 0:02:24]} 26. Nc3 {[%emt 0:00:29]} Bg5 {[%emt 0:01:03]} 27. Nb5 {[%emt 0:00:56]} Qe7 {[%emt 0:01:21]} 28. Nd4 {[%emt 0:01:26]} Be3 {[%emt 0:04:06]} 29. Nc6 {[%emt 0:01:22]} Bxf2+ {[%emt 0:06:20]} 30. Kxf2 {[%emt 0:00:05]} Qh4+ {[%emt 0:00:25]} 31. Kg1 {[%emt 0:00:06]} Re3 {[%emt 0:00:18]} 32. Qd4 {[%emt 0:06:46]} Qxd4 {[%emt 0:05:47]} 33. Nxd4 {[%emt 0:00:05]} Ra8 {[%emt 0:01:00]} 34. Bf1 {[%emt 0:02:58]} Ra4 {[%emt 0:01:21]} 35. Nb5 {[%emt 0:00:08]} Rxb4 {[%emt 0:00:42]} 36. Nxd6 {[%emt 0:01:19]} f4 {[%emt 0:00:54]} 37. Ra1 {[%emt 0:02:31]} h6 {[%emt 0:01:36]} 38. Ra8+ {[%emt 0:00:59]} Kh7 {[%emt 0:00:04]} 39. Ra2 {[%emt 0:00:08]} Bd3 {[%emt 0:02:32]} 40. Bxd3+ {[%emt 0:00:00]} Rxd3 {[%emt 0:00:00]} 41. Rc2 {[%emt 0:02:32]} Kg6 {[%emt 0:06:35]} 42. Kf2 {[%emt 0:00:49]} Rdb3 {[%emt 0:02:37]} 43. Nc8 {[%emt 0:04:32]} Rb2 {[%emt 0:01:53]} 44. Rxb2 {[%emt 0:00:27]} Rxb2+ {[%emt 0:00:05]} 45. Kf3 {[%emt 0:00:05]} Kf5 {[%emt 0:00:30]} 46. Nd6+ {[%emt 0:00:25]} Ke5 {[%emt 0:00:34]} 47. Nf7+ {[%emt 0:00:08]} Kf6 {[%emt 0:00:21]} 48. Nd6 {[%emt 0:00:21]} g5 {[%emt 0:00:29]} 49. Nc8 {[%emt 0:03:15]} Ke5 {[%emt 0:00:48]} 50. h3 {[%emt 0:00:46]} h5 {[%emt 0:00:52]} 51. Na7 {[%emt 0:01:24]} Rb3+ {[%emt 0:00:58]} 52. Kf2 {[%emt 0:00:07]} Rc3 {[%emt 0:01:25]} 53. Nc8 {[%emt 0:00:26]} b5 {[%emt 0:00:44]} 0-1

[Event "European Womens-ch 2025"]
[Site "Rhodes"]
[Date "2025.04.07"]
[Round "7.10"]
[White "Ushenina, Anna"]
[Black "Gevorgyan, Maria"]
[Result "1-0"]
[Annotator "RC"]
[ECO "A87"]
[WhiteElo "2428"]
[BlackElo "2234"]
[PlyCount "187"]
[EventDate "2025.03.29"]
[EventType "swiss"]
[EventCountry "GRE"]
[SourceTitle "playchess.com"]
[Source "ChessBase"]
[SourceQuality "1"]
[TimeControl "40/5400+30:1800+30"]

1. d4 {[%emt 0:00:03]} f5 {[%emt 0:00:11]} 2. c4 {[%emt 0:05:45]} g6 {[%emt 0:00:58]} 3. Nf3 {[%emt 0:01:57]} Nf6 {[%emt 0:00:29]} 4. g3 {[%emt 0:00:18]} Bg7 {[%emt 0:00:15]} 5. Bg2 {[%emt 0:00:04]} O-O {[%emt 0:00:36]} 6. O-O {[%emt 0:00:31]} d6 {[%emt 0:00:30]} 7. Nc3 {[%emt 0:00:08]} Qe8 {[%emt 0:00:39]} 8. Re1 {[%emt 0:14:17]} Qf7 {[%emt 0:00:52]} 9. e4 {[%emt 0:06:37]} Nxe4 {[%emt 0:03:57]} 10. Nxe4 {[%emt 0:01:22]} fxe4 {[%emt 0:00:06]} 11. Rxe4 {[%emt 0:00:06]} Bf5 {[%emt 0:24:26]} 12. Rh4 {[%emt 0:31:18]} Qxc4 {[%emt 0:12:18]} 13. Bf1 {[%emt 0:03:47]} Qc6 {[%emt 0:06:37]} 14. Qb3+ {[%emt 0:02:19]} d5 {[%emt 0:00:54]} 15. Bf4 {[%emt 0:06:07]} Bc2 {[%emt 0:07:12]} 16. Qe3 {[%emt 0:00:54]} Qf6 {[%emt 0:04:34]} 17. Bg2 {[%emt 0:16:48]} Nc6 {[%emt 0:17:42]} 18. Ng5 {[%emt 0:00:11]} Rad8 {[%emt 0:01:54]} 19. Nxh7 {[%emt 0:00:49]} Qxd4 {[%emt 0:03:55]} 20. Qe6+ {[%emt 0:00:35]} Rf7 {[%emt 0:00:00]} 21. Ng5 {[%emt 0:00:15]} Qf6 {[%emt 0:00:05]} 22. Bxd5 {[%emt 0:01:15]} Rxd5 {[%emt 0:02:06]} 23. Qxd5 {[%emt 0:00:01]} e6 {[%emt 0:00:05]} 24. Nxe6 {[%emt 0:03:21]} Nb4 {[%emt 0:01:08]} 25. Qc4 {[%emt 0:01:59]} Qxb2 {[%emt 0:00:54]} 26. Re1 {[%emt 0:00:01]} Bd3 {[%emt 0:00:21]} 27. Qb3 {[%emt 0:01:19]} Qxb3 {[%emt 0:04:37]} 28. axb3 {[%emt 0:00:01]} Bc3 {[%emt 0:00:10]} 29. Rd1 {[%emt 0:01:34]} Re7 {[%emt 0:00:28]} 30. Nc5 {[%emt 0:00:31]} Bb5 {[%emt 0:01:57]} 31. Rd8+ {[%emt 0:00:49]} Be8 {[%emt 0:00:02]} 32. Be3 {[%emt 0:00:31]} Nc6 {[%emt 0:00:44]} 33. Rd3 {[%emt 0:00:38]} Bf6 {[%emt 0:00:05]} 34. Rf4 {[%emt 0:00:30]} Kg7 {[%emt 0:00:13]} 35. Nxb7 {[%emt 0:00:37]} g5 {[%emt 0:00:11]} 36. Ra4 {[%emt 0:00:31]} Ne5 {[%emt 0:00:02]} 37. Rd1 {[%emt 0:00:29]} Nf3+ {[%emt 0:04:48]} 38. Kg2 {[%emt 0:00:03]} Bc6 {[%emt 0:00:24]} 39. Na5 {[%emt 0:00:07]} Nh4+ {[%emt 0:01:05]} 40. Kf1 {[%emt 0:00:00]} Bxa4 {[%emt 0:00:00]} 41. bxa4 {[%emt 0:01:01]} Nf5 {[%emt 0:02:34]} 42. Bxa7 {[%emt 0:05:21]} Re4 {[%emt 0:02:25]} 43. Rd7+ {[%emt 0:01:11]} Kg6 {[%emt 0:00:05]} 44. Rxc7 {[%emt 0:00:41]} Rxa4 {[%emt 0:00:14]} 45. Nb3 {[%emt 0:00:39]} Nd6 {[%emt 0:01:52]} 46. Rd7 {[%emt 0:10:25]} Nb5 {[%emt 0:02:58]} 47. Be3 {[%emt 0:00:20]} Ra3 {[%emt 0:01:21]} 48. Nd2 {[%emt 0:02:42]} Ra4 {[%emt 0:03:03]} 49. Kg2 {[%emt 0:00:53]} Nc3 {[%emt 0:00:15]} 50. Nf3 {[%emt 0:02:55]} Ra2 {[%emt 0:01:05]} 51. h3 {[%emt 0:00:16]} Ne4 {[%emt 0:02:22]} 52. Rb7 {[%emt 0:00:48]} Nc3 {[%emt 0:01:13]} 53. Ra7 {[%emt 0:00:54]} Rb2 {[%emt 0:01:11]} 54. Ra6 {[%emt 0:00:45]} Ne4 {[%emt 0:02:02]} 55. Nxg5 {[%emt 0:01:40]} Nxf2 {[%emt 0:01:53]} 56. Bxf2 {[%emt 0:00:19]} Kxg5 {[%emt 0:00:10]} 57. Kf3 {[%emt 0:01:21]} Rb3+ {[%emt 0:00:05]} 58. Be3+ {[%emt 0:00:29]} Kf5 {[%emt 0:00:01]} 59. Ra4 {[%emt 0:04:18]} Bd8 {[%emt 0:02:20]} 60. Rf4+ {[%emt 0:00:19]} Kg6 {[%emt 0:00:37]} 61. Re4 {[%emt 0:00:37]} Kf5 {[%emt 0:00:38]} 62. g4+ {[%emt 0:02:06]} Kg6 {[%emt 0:00:04]} 63. Re6+ {[%emt 0:01:48]} Kf7 {[%emt 0:00:06]} 64. Re5 {[%emt 0:00:19]} Bf6 {[%emt 0:01:19]} 65. Rf5 {[%emt 0:00:55]} Ke6 {[%emt 0:00:08]} 66. Kf2 {[%emt 0:00:50]} Bh4+ {[%emt 0:01:28]} 67. Ke2 {[%emt 0:00:15]} Rb2+ {[%emt 0:01:01]} 68. Kd3 {[%emt 0:00:07]} Rb3+ {[%emt 0:00:15]} 69. Kd2 {[%emt 0:00:18]} Be1+ {[%emt 0:03:05]} 70. Ke2 {[%emt 0:00:06]} Bh4 {[%emt 0:00:05]} 71. Rh5 {[%emt 0:00:28]} Bf6 {[%emt 0:00:28]} 72. Ra5 {[%emt 0:01:22]} Rb2+ {[%emt 0:00:52]} 73. Kf3 {[%emt 0:00:10]} Rb3 {[%emt 0:00:20]} 74. Ra6+ {[%emt 0:00:24]} Ke5 {[%emt 0:01:21]} 75. Ra2 {[%emt 0:00:49]} Ke6 {[%emt 0:02:53]} 76. Re2 {[%emt 0:00:10]} Kd5 {[%emt 0:00:21]} 77. Kg2 {[%emt 0:00:15]} Be5 {[%emt 0:02:16]} 78. Bf2 {[%emt 0:00:36]} Rb4 {[%emt 0:00:09]} 79. Bg3 {[%emt 0:00:13]} Bg7 {[%emt 0:01:22]} 80. Kf3 {[%emt 0:00:30]} Rb3+ {[%emt 0:02:26]} 81. Re3 {[%emt 0:00:12]} Rb7 {[%emt 0:00:52]} 82. g5 {[%emt 0:00:15]} Bd4 {[%emt 0:00:39]} 83. Re2 {[%emt 0:00:12]} Rb1 {[%emt 0:01:11]} 84. h4 {[%emt 0:00:32]} Rg1 {[%emt 0:00:23]} 85. h5 {[%emt 0:01:34]} Bc3 {[%emt 0:00:48]} 86. h6 {[%emt 0:00:55]} Rb1 {[%emt 0:00:06]} 87. Kg4 {[%emt 0:00:16]} Rb7 {[%emt 0:00:31]} 88. Bf4 {[%emt 0:01:07]} Ra7 {[%emt 0:00:13]} 89. g6 {[%emt 0:00:22]} Rb7 {[%emt 0:00:10]} 90. Bg5 {[%emt 0:00:21]} Ba1 {[%emt 0:01:37]} 91. Kf5 {[%emt 0:00:12]} Kd6 {[%emt 0:00:12]} 92. Rd2+ {[%emt 0:00:19]} Kc6 {[%emt 0:00:25]} 93. Ke6 {[%emt 0:00:28]} Kb5 {[%emt 0:01:40]} 94. Be7 {[%emt 0:00:51]} 1-0

[Event "European Womens-ch 2025"]
[Site "Rhodes"]
[Date "2025.04.07"]
[Round "7.11"]
[White "Daulyte-Cornette, Deimante"]
[Black "Gaboyan, Susanna"]
[Result "1-0"]
[Annotator "RC"]
[ECO "B31"]
[WhiteElo "2389"]
[BlackElo "2200"]
[PlyCount "61"]
[EventDate "2025.03.29"]
[EventType "swiss"]
[EventCountry "GRE"]
[SourceTitle "playchess.com"]
[Source "ChessBase"]
[SourceQuality "1"]
[TimeControl "40/5400+30:1800+30"]

1. e4 {[%emt 0:00:03]} c5 {[%emt 0:00:06]} 2. Nf3 {[%emt 0:00:07]} Nc6 {[%emt 0:00:05]} 3. Bb5 {[%emt 0:00:07]} g6 {[%emt 0:00:06]} 4. c3 {[%emt 0:00:13]} Bg7 {[%emt 0:00:58]} 5. d4 {[%emt 0:00:29]} cxd4 {[%emt 0:02:28]} 6. cxd4 {[%emt 0:00:08]} Nf6 {[%emt 0:00:50]} 7. Nc3 {[%emt 0:03:21]} d5 {[%emt 0:01:13]} 8. Ne5 {[%emt 0:01:18]} Qd6 {[%emt 0:30:07]} 9. Nxc6 {[%emt 0:31:56]} bxc6 {[%emt 0:01:32]} 10. e5 {[%emt 0:00:05]} Qe6 {[%emt 0:00:30]} 11. Be2 {[%emt 0:00:17]} Nd7 {[%emt 0:06:51]} 12. O-O {[%emt 0:01:45]} O-O {[%emt 0:03:06]} 13. f4 {[%emt 0:05:43]} Rb8 {[%emt 0:10:02]} 14. f5 {[%emt 0:10:23]} gxf5 {[%emt 0:01:34]} 15. Bd3 {[%emt 0:00:16]} Nb6 {[%emt 0:05:08]} 16. Bxf5 {[%emt 0:02:35]} Qxf5 {[%emt 0:00:07]} 17. Rxf5 {[%emt 0:00:04]} Bxf5 {[%emt 0:00:05]} 18. Qf3 {[%emt 0:03:07]} Bg6 {[%emt 0:01:59]} 19. h4 {[%emt 0:00:31]} f6 {[%emt 0:06:34]} 20. e6 {[%emt 0:02:16]} f5 {[%emt 0:04:32]} 21. h5 {[%emt 0:05:13]} Be8 {[%emt 0:02:02]} 22. Ne2 {[%emt 0:05:48]} Kh8 {[%emt 0:02:37]} 23. Bg5 {[%emt 0:06:59]} Rb7 {[%emt 0:02:27]} 24. h6 {[%emt 0:09:02]} Bf6 {[%emt 0:00:12]} 25. Qg3 {[%emt 0:01:05]} Bg6 {[%emt 0:02:11]} 26. Bxf6+ {[%emt 0:01:27]} Rxf6 {[%emt 0:00:19]} 27. Nf4 {[%emt 0:00:07]} Nc4 {[%emt 0:01:28]} 28. b3 {[%emt 0:00:46]} Nd6 {[%emt 0:00:24]} 29. Rc1 {[%emt 0:00:16]} Ne4 {[%emt 0:05:49]} 30. Rxc6 {[%emt 0:01:01]} Rb8 {[%emt 0:00:08]} 31. Nxg6+ {[%emt 0:00:10]} 1-0

[Event "European Womens-ch 2025"]
[Site "Rhodes"]
[Date "2025.04.07"]
[Round "7.12"]
[White "Vega Gutierrez, Sabrina"]
[Black "Krasteva, Beloslava"]
[Result "1-0"]
[Annotator "RC"]
[ECO "B07"]
[WhiteElo "2380"]
[BlackElo "2257"]
[PlyCount "81"]
[EventDate "2025.03.29"]
[EventType "swiss"]
[EventCountry "GRE"]
[SourceTitle "playchess.com"]
[Source "ChessBase"]
[SourceQuality "1"]
[TimeControl "40/5400+30:1800+30"]

1. e4 {[%emt 0:00:04]} d6 {[%emt 0:00:08]} 2. d4 {[%emt 0:00:25]} Nf6 {[%emt 0:00:09]} 3. Nc3 {[%emt 0:00:18]} e5 {[%emt 0:00:06]} 4. Nge2 {[%emt 0:07:10]} c6 {[%emt 0:00:46]} 5. h3 {[%emt 0:01:03]} b5 {[%emt 0:00:22]} 6. dxe5 {[%emt 0:08:52]} dxe5 {[%emt 0:00:36]} 7. Qxd8+ {[%emt 0:00:07]} Kxd8 {[%emt 0:00:04]} 8. Ng3 {[%emt 0:00:40]} Be6 {[%emt 0:05:45]} 9. f4 {[%emt 0:10:37]} Bd6 {[%emt 0:08:39]} 10. f5 {[%emt 0:01:08]} Bc8 {[%emt 0:02:27]} 11. a4 {[%emt 0:01:19]} b4 {[%emt 0:01:26]} 12. Nd1 {[%emt 0:01:39]} Nbd7 {[%emt 0:05:33]} 13. a5 {[%emt 0:06:26]} Nc5 {[%emt 0:02:17]} 14. Nf2 {[%emt 0:00:24]} Ba6 {[%emt 0:02:55]} 15. Bxa6 {[%emt 0:08:14]} Nxa6 {[%emt 0:00:07]} 16. Bg5 {[%emt 0:00:59]} Be7 {[%emt 0:01:13]} 17. O-O-O+ {[%emt 0:12:19]} Nd7 {[%emt 1:06:27]} 18. Bxe7+ {[%emt 0:06:11]} Kxe7 {[%emt 0:00:00]} 19. f6+ {[%emt 0:00:19]} gxf6 {[%emt 0:00:00]} 20. Nf5+ {[%emt 0:00:09]} Kd8 {[%emt 0:00:00]} 21. Rd6 {[%emt 0:00:45]} Kc7 {[%emt 0:00:00]} 22. Rhd1 {[%emt 0:00:07]} Nac5 {[%emt 0:00:00]} 23. Ne7 {[%emt 0:02:36]} Rhe8 {[%emt 0:00:00]} 24. Rxc6+ {[%emt 0:02:31]} Kb8 {[%emt 0:00:00]} 25. Nd5 {[%emt 0:03:15]} Re6 {[%emt 0:00:00]} 26. Nxb4 {[%emt 0:01:47]} Rxc6 {[%emt 0:00:00]} 27. Nxc6+ {[%emt 0:00:03]} Kc7 {[%emt 0:00:00]} 28. Ne7 {[%emt 0:00:25]} h5 {[%emt 0:00:00]} 29. b4 {[%emt 0:02:08]} Ne6 {[%emt 0:00:00]} 30. c3 {[%emt 0:03:00]} Rh8 {[%emt 0:00:00]} 31. g3 {[%emt 0:03:17]} Rh6 {[%emt 0:00:00]} 32. h4 {[%emt 0:00:18]} Nb8 {[%emt 0:00:00]} 33. Rd3 {[%emt 0:00:44]} Nd7 {[%emt 0:00:00]} 34. Nd1 {[%emt 0:01:08]} Rh7 {[%emt 0:00:00]} 35. Ne3 {[%emt 0:06:32]} Rg7 {[%emt 0:00:00]} 36. N3d5+ {[%emt 0:02:37]} Kb8 {[%emt 0:00:00]} 37. Nf5 {[%emt 0:00:22]} Rh7 {[%emt 0:00:00]} 38. Rf3 {[%emt 0:04:58]} Nd8 {[%emt 0:01:33]} 39. Kb2 {[%emt 0:00:50]} Rh8 {[%emt 0:00:21]} 40. Ng7 {[%emt 0:00:00]} Rh6 {[%emt 0:00:00]} 41. Ne8 {[%emt 0:08:24]} 1-0

[Event "European Womens-ch 2025"]
[Site "Rhodes"]
[Date "2025.04.07"]
[Round "7.13"]
[White "Socko, Monika"]
[Black "Karacsonyi, Kata"]
[Result "1/2-1/2"]
[Annotator "RC"]
[ECO "E97"]
[WhiteElo "2369"]
[BlackElo "2198"]
[PlyCount "69"]
[EventDate "2025.03.29"]
[EventType "swiss"]
[EventCountry "GRE"]
[SourceTitle "playchess.com"]
[Source "ChessBase"]
[SourceQuality "1"]
[TimeControl "40/5400+30:1800+30"]

1. d4 {[%emt 0:00:03]} Nf6 {[%emt 0:00:06]} 2. Nf3 {[%emt 0:00:06]} g6 {[%emt 0:00:11]} 3. c4 {[%emt 0:00:04]} Bg7 {[%emt 0:00:06]} 4. Nc3 {[%emt 0:00:05]} O-O {[%emt 0:00:27]} 5. e4 {[%emt 0:00:06]} d6 {[%emt 0:00:08]} 6. Be2 {[%emt 0:00:06]} e5 {[%emt 0:00:26]} 7. O-O {[%emt 0:00:10]} Nc6 {[%emt 0:00:12]} 8. dxe5 {[%emt 0:00:21]} dxe5 {[%emt 0:00:09]} 9. Bg5 {[%emt 0:00:04]} Bg4 {[%emt 0:11:24]} 10. Qxd8 {[%emt 0:03:11]} Nxd8 {[%emt 0:01:13]} 11. Bxf6 {[%emt 0:00:56]} Bxf6 {[%emt 0:00:05]} 12. Nd5 {[%emt 0:00:02]} Bxf3 {[%emt 0:00:31]} 13. gxf3 {[%emt 0:05:45]} Kg7 {[%emt 0:00:09]} 14. Nxc7 {[%emt 0:00:28]} Rc8 {[%emt 0:00:05]} 15. Nd5 {[%emt 0:02:28]} Ne6 {[%emt 0:00:51]} 16. Rfc1 {[%emt 0:06:46]} Bg5 {[%emt 0:09:03]} 17. Rc3 {[%emt 0:01:17]} Nd4 {[%emt 0:06:03]} 18. Bf1 {[%emt 0:10:28]} Bd2 {[%emt 0:06:59]} 19. Rd3 {[%emt 0:01:10]} Rxc4 {[%emt 0:02:02]} 20. f4 {[%emt 0:06:54]} f6 {[%emt 0:22:23]} 21. Rd1 {[%emt 0:18:04]} Rc2 {[%emt 0:02:19]} 22. Kg2 {[%emt 0:04:31]} Bc1 {[%emt 0:01:20]} 23. Rc3 {[%emt 0:09:28]} Bxb2 {[%emt 0:06:23]} 24. Rxc2 {[%emt 0:05:58]} Nxc2 {[%emt 0:00:06]} 25. Rb1 {[%emt 0:00:01]} Ba3 {[%emt 0:04:26]} 26. Rxb7+ {[%emt 0:00:10]} Rf7 {[%emt 0:00:07]} 27. Rb3 {[%emt 0:02:21]} Bd6 {[%emt 0:01:50]} 28. Bc4 {[%emt 0:02:28]} Nd4 {[%emt 0:01:36]} 29. Rd3 {[%emt 0:03:45]} Rb7 {[%emt 0:02:12]} 30. Rd2 {[%emt 0:00:05]} Rb1 {[%emt 0:02:17]} 31. fxe5 {[%emt 0:02:01]} fxe5 {[%emt 0:00:43]} 32. Ne3 {[%emt 0:02:13]} Bb4 {[%emt 0:05:18]} 33. Rd3 {[%emt 0:00:50]} Rc1 {[%emt 0:02:42]} 34. Rd1 {[%emt 0:00:47]} Rxd1 {[%emt 0:01:27]} 35. Nxd1 {[%emt 0:00:04]} 1/2-1/2

[Event "European Womens-ch 2025"]
[Site "Rhodes"]
[Date "2025.04.07"]
[Round "7.14"]
[White "Zherebtsova, Alexandra"]
[Black "Roebers, Eline"]
[Result "0-1"]
[Annotator "RC"]
[ECO "D05"]
[WhiteElo "2229"]
[BlackElo "2367"]
[PlyCount "78"]
[EventDate "2025.03.29"]
[EventType "swiss"]
[EventCountry "GRE"]
[SourceTitle "playchess.com"]
[Source "ChessBase"]
[SourceQuality "1"]
[TimeControl "40/5400+30:1800+30"]

1. Nf3 {[%emt 0:00:37]} d5 {[%emt 0:00:05]} 2. b3 {[%emt 0:00:35]} Nf6 {[%emt 0:00:47]} 3. Bb2 {[%emt 0:00:35]} e6 {[%emt 0:00:06]} 4. e3 {[%emt 0:01:35]} Bd6 {[%emt 0:00:06]} 5. d4 {[%emt 0:05:17]} O-O {[%emt 0:03:08]} 6. Bd3 {[%emt 0:02:29]} Ne4 {[%emt 0:04:08]} 7. O-O {[%emt 0:02:29]} Nd7 {[%emt 0:04:30]} 8. c4 {[%emt 0:05:37]} f5 {[%emt 0:07:54]} 9. c5 {[%emt 0:14:11]} Be7 {[%emt 0:00:16]} 10. b4 {[%emt 0:01:32]} g5 {[%emt 0:06:26]} 11. Nfd2 {[%emt 0:12:52]} Ndf6 {[%emt 0:34:35]} 12. f3 {[%emt 0:02:28]} Nxd2 {[%emt 0:00:10]} 13. Nxd2 {[%emt 0:04:49]} Bd7 {[%emt 0:00:18]} 14. e4 {[%emt 0:08:40]} Nh5 {[%emt 0:02:53]} 15. g3 {[%emt 0:05:46]} Qe8 {[%emt 0:00:13]} 16. Qe2 {[%emt 0:01:27]} a6 {[%emt 0:04:47]} 17. a4 {[%emt 0:05:54]} Ng7 {[%emt 0:13:47]} 18. b5 {[%emt 0:04:10]} axb5 {[%emt 0:02:50]} 19. axb5 {[%emt 0:00:04]} Rxa1 {[%emt 0:00:03]} 20. Rxa1 {[%emt 0:00:29]} g4 {[%emt 0:00:22]} 21. exd5 {[%emt 0:02:09]} exd5 {[%emt 0:00:10]} 22. Re1 {[%emt 0:09:04]} Be6 {[%emt 0:04:44]} 23. f4 {[%emt 0:01:33]} Bf6 {[%emt 0:01:08]} 24. Nb3 {[%emt 0:00:54]} h5 {[%emt 0:04:27]} 25. Na5 {[%emt 0:02:27]} Qc8 {[%emt 0:00:49]} 26. Qc2 {[%emt 0:01:20]} Kf7 {[%emt 0:00:51]} 27. Bf1 {[%emt 0:02:23]} c6 {[%emt 0:02:44]} 28. Bc3 {[%emt 0:01:19]} h4 {[%emt 0:01:32]} 29. Rb1 {[%emt 0:00:11]} hxg3 {[%emt 0:00:25]} 30. hxg3 {[%emt 0:00:05]} Bd7 {[%emt 0:00:36]} 31. bxc6 {[%emt 0:00:32]} bxc6 {[%emt 0:00:16]} 32. Rb7 {[%emt 0:01:58]} Kg6 {[%emt 0:00:26]} 33. Be2 {[%emt 0:00:11]} Re8 {[%emt 0:00:53]} 34. Bxg4 {[%emt 0:00:24]} Re3 {[%emt 0:00:03]} 35. Bh3 {[%emt 0:00:47]} Qe8 {[%emt 0:00:38]} 36. Kf2 {[%emt 0:00:35]} Bh4 {[%emt 0:00:47]} 37. gxh4 {[%emt 0:00:55]} Rxh3 {[%emt 0:00:05]} 38. Kf1 {[%emt 0:00:31]} Nh5 {[%emt 0:00:52]} 39. Be1 {[%emt 0:00:27]} Rh1+ {[%emt 0:00:12]} 0-1

[Event "European Womens-ch 2025"]
[Site "Rhodes"]
[Date "2025.04.07"]
[Round "7.15"]
[White "Velikic, Adela"]
[Black "Kiolbasa, Oliwia"]
[Result "1/2-1/2"]
[Annotator "RC"]
[ECO "A22"]
[WhiteElo "2214"]
[BlackElo "2360"]
[PlyCount "113"]
[EventDate "2025.03.29"]
[EventType "swiss"]
[EventCountry "GRE"]
[SourceTitle "playchess.com"]
[Source "ChessBase"]
[SourceQuality "1"]
[TimeControl "40/5400+30:1800+30"]

1. c4 {[%emt 0:00:03]} Nf6 {[%emt 0:00:23]} 2. Nc3 {[%emt 0:00:10]} e5 {[%emt 0:01:20]} 3. g3 {[%emt 0:07:53]} Bb4 {[%emt 0:01:45]} 4. Bg2 {[%emt 0:00:52]} O-O {[%emt 0:03:05]} 5. e4 {[%emt 0:01:27]} d6 {[%emt 0:05:04]} 6. Nge2 {[%emt 0:02:42]} a5 {[%emt 0:04:02]} 7. O-O {[%emt 0:06:32]} Bc5 {[%emt 0:05:06]} 8. d4 {[%emt 0:07:34]} exd4 {[%emt 0:00:15]} 9. Nxd4 {[%emt 0:00:42]} Ng4 {[%emt 0:07:07]} 10. Na4 {[%emt 0:19:19]} Qf6 {[%emt 0:03:53]} 11. Nxc5 {[%emt 0:07:07]} dxc5 {[%emt 0:03:08]} 12. Nf5 {[%emt 0:05:54]} Ne5 {[%emt 0:07:45]} 13. Ne3 {[%emt 0:03:37]} Rd8 {[%emt 0:03:32]} 14. Nd5 {[%emt 0:01:23]} Qd6 {[%emt 0:00:09]} 15. f4 {[%emt 0:18:49]} Nxc4 {[%emt 0:02:33]} 16. Qc2 {[%emt 0:06:14]} Nb6 {[%emt 0:08:30]} 17. e5 {[%emt 0:01:11]} Qd7 {[%emt 0:00:47]} 18. Rd1 {[%emt 0:00:50]} Nxd5 {[%emt 0:02:07]} 19. Bxd5 {[%emt 0:02:15]} Qe7 {[%emt 0:06:39]} 20. Be3 {[%emt 0:02:37]} Na6 {[%emt 0:02:14]} 21. Be4 {[%emt 0:01:17]} Bg4 {[%emt 0:07:10]} 22. Rxd8+ {[%emt 0:02:01]} Rxd8 {[%emt 0:00:03]} 23. a3 {[%emt 0:00:54]} c6 {[%emt 0:04:10]} 24. Bxh7+ {[%emt 0:00:06]} Kh8 {[%emt 0:00:03]} 25. Be4 {[%emt 0:00:36]} Qe6 {[%emt 0:03:09]} 26. h3 {[%emt 0:00:52]} Bxh3 {[%emt 0:02:05]} 27. Kf2 {[%emt 0:00:30]} g6 {[%emt 0:02:12]} 28. Rd1 {[%emt 0:00:27]} Rxd1 {[%emt 0:03:00]} 29. Qxd1 {[%emt 0:00:01]} Qd7 {[%emt 0:01:02]} 30. Qe1 {[%emt 0:01:01]} a4 {[%emt 0:01:30]} 31. Qc3 {[%emt 0:00:28]} Kh7 {[%emt 0:02:57]} 32. Qc4 {[%emt 0:00:32]} b5 {[%emt 0:00:36]} 33. Qc1 {[%emt 0:00:23]} Bg4 {[%emt 0:03:59]} 34. Qh1+ {[%emt 0:00:16]} Kg8 {[%emt 0:00:15]} 35. Bxc6 {[%emt 0:00:16]} Qd3 {[%emt 0:00:05]} 36. Qe1 {[%emt 0:00:53]} Nb8 {[%emt 0:04:33]} 37. Bg2 {[%emt 0:00:24]} Nd7 {[%emt 0:00:13]} 38. Bf1 {[%emt 0:00:44]} Qf5 {[%emt 0:01:36]} 39. Kg1 {[%emt 0:00:29]} c4 {[%emt 0:00:15]} 40. Bg2 {[%emt 0:00:00]} Nf8 {[%emt 0:00:00]} 41. Bc6 {[%emt 0:09:01]} Qc2 {[%emt 0:06:04]} 42. Qd2 {[%emt 0:02:33]} Qb3 {[%emt 0:01:10]} 43. Bf2 {[%emt 0:07:00]} Ne6 {[%emt 0:02:33]} 44. Qc3 {[%emt 0:08:53]} Qd1+ {[%emt 0:01:08]} 45. Kg2 {[%emt 0:01:05]} Qe2 {[%emt 0:10:51]} 46. Kg1 {[%emt 0:02:37]} Bh3 {[%emt 0:04:57]} 47. Bb6 {[%emt 0:01:15]} Bf5 {[%emt 0:03:42]} 48. Bf3 {[%emt 0:00:43]} Qc2 {[%emt 0:01:55]} 49. Qxc2 {[%emt 0:00:32]} Bxc2 {[%emt 0:00:01]} 50. Bd5 {[%emt 0:00:51]} Bb3 {[%emt 0:01:33]} 51. Bxe6 {[%emt 0:01:32]} fxe6 {[%emt 0:00:27]} 52. Ba5 {[%emt 0:00:29]} Kf7 {[%emt 0:00:22]} 53. Kf2 {[%emt 0:00:19]} Ke7 {[%emt 0:00:05]} 54. Ke3 {[%emt 0:00:20]} Kd7 {[%emt 0:00:04]} 55. Kf3 {[%emt 0:00:53]} Bd1+ {[%emt 0:00:33]} 56. Ke4 {[%emt 0:00:06]} Kc6 {[%emt 0:00:06]} 57. Kd4 {[%emt 0:00:15]} 1/2-1/2